[Event "2nd FIDE WCC Rapid G12"]
[Site "Minsk"]
[Date "2018.06.23"]
[Round "8"]
[White "Osmolovska, Yevheniia"]
[Black "Dubovyk, Anastasiia"]
[Result "0-1"]
[ECO "A05"]
[WhiteElo "1391"]
[BlackElo "1721"]
[Annotator "NA RC"]
[PlyCount "86"]
[EventDate "2018.06.22"]
[EventType "rapid"]
[EventCountry "BLR"]
[SourceTitle "playchess.com"]
[Source "ChessBase"]
[SourceQuality "1"]
[TimeControl "600+5"]

1. Nf3 {[%emt 0:00:00]} Nf6 {[%emt 0:00:01]} 2. c4 {[%emt 0:00:00]} c5 {[%emt 0:00:01]} 3. g3 {[%emt 0:00:00]} g6 {[%emt 0:00:01]} 4. Bg2 {[%emt 0:00:01]} Bg7 {[%emt 0:00:01]} 5. O-O {[%emt 0:00:02]} O-O {[%emt 0:00:02]} 6. e3 {[%emt 0:00:05]} d6 {[%emt 0:00:03]} 7. d4 {[%emt 0:00:02]} Nbd7 {[%emt 0:00:30]} 8. Nc3 {[%emt 0:00:08]} a6 {[%emt 0:00:06]} 9. a4 {[%emt 0:00:04]} Rb8 {[%emt 0:00:10]} 10. a5 {[%emt 0:00:07]} Qc7 {[%emt 0:00:04]} 11. Qe2 {[%emt 0:00:15]} b6 {[%emt 0:00:06]} 12. axb6 {[%emt 0:00:07]} Nxb6 {[%emt 0:00:03]} 13. b3 {[%emt 0:00:47]} Bb7 {[%emt 0:00:15]} 14. Bb2 {[%emt 0:00:17]} Rfd8 {[%emt 0:00:35]} 15. Ba3 {[%emt 0:00:40]} Nfd7 {[%emt 0:00:31]} 16. Rac1 {[%emt 0:00:41]} e5 {[%emt 0:00:56]} 17. Rfd1 {[%emt 0:00:22]} exd4 {[%emt 0:00:51]} 18. exd4 {[%emt 0:00:02]} Re8 {[%emt 0:00:02]} 19. Qd3 {[%emt 0:00:24]} Bxf3 {[%emt 0:00:28]} 20. Bxf3 {[%emt 0:00:05]} Bxd4 {[%emt 0:00:08]} 21. Bg2 {[%emt 0:00:16]} Ne5 {[%emt 0:00:08]} 22. Qc2 {[%emt 0:00:13]} Ng4 {[%emt 0:01:09]} 23. Rd2 {[%emt 0:00:19]} f5 {[%emt 0:00:34]} 24. h3 {[%emt 0:00:13]} Nf6 {[%emt 0:00:02]} 25. Ne2 {[%emt 0:00:04]} Ne4 {[%emt 0:01:38]} 26. Bxe4 {[%emt 0:00:35]} Rxe4 {[%emt 0:01:36]} 27. Nxd4 {[%emt 0:00:13]} cxd4 {[%emt 0:00:03]} 28. f3 {[%emt 0:00:27]} Re3 {[%emt 0:00:36]} 29. Kf2 {[%emt 0:01:03]} Qb7 {[%emt 0:01:13]} 30. Qd1 {[%emt 0:00:11]} Rbe8 {[%emt 0:00:16]} 31. Rxd4 {[%emt 0:00:45]} Nc8 {[%emt 0:00:10]} 32. Rd3 {[%emt 0:01:10]} Qe7 {[%emt 0:00:12]} 33. Rc2 {[%emt 0:00:10]} Re1 {[%emt 0:00:04]} 34. Qd2 {[%emt 0:00:02]} Qa7+ {[%emt 0:00:04]} 35. Rd4 {[%emt 0:00:06]} R1e2+ {[%emt 0:00:09]} 36. Qxe2 {[%emt 0:00:02]} Qxd4+ 37. Kf1 {[%emt 0:00:03]} Rxe2 {[%emt 0:00:04]} 38. Kxe2 {[%emt 0:00:05]} Qa1 {[%emt 0:00:04]} 39. Bb2 {[%emt 0:00:07]} Qh1 {[%emt 0:00:08]} 40. h4 {[%emt 0:00:11]} Qg2+ {[%emt 0:00:02]} 41. Kd1 {[%emt 0:00:01]} Qxf3+ {[%emt 0:00:02]} 42. Kc1 {[%emt 0:00:01]} Qxg3 {[%emt 0:00:04]} 43. Kb1 {[%emt 0:00:03]} Qxb3 {[%emt 0:00:03]} 0-1

[Event "2nd FIDE WCC Rapid G12"]
[Site "Minsk"]
[Date "2018.06.23"]
[Round "8"]
[White "Shokirjonova, Barchinoy"]
[Black "Mikheeva, Galina"]
[Result "0-1"]
[ECO "C50"]
[WhiteElo "1247"]
[BlackElo "1492"]
[Annotator "NA RC"]
[PlyCount "168"]
[EventDate "2018.06.22"]
[EventType "rapid"]
[EventCountry "BLR"]
[SourceTitle "playchess.com"]
[Source "ChessBase"]
[SourceQuality "1"]
[TimeControl "600+5"]

1. e4 {[%emt 0:00:00]} e5 {[%emt 0:00:00]} 2. Nf3 {[%emt 0:00:00]} Nc6 {[%emt 0:00:01]} 3. Bc4 {[%emt 0:00:00]} Bc5 {[%emt 0:00:02]} 4. O-O {[%emt 0:00:01]} Nf6 {[%emt 0:00:04]} 5. d3 {[%emt 0:00:16]} O-O {[%emt 0:00:13]} 6. Bg5 {[%emt 0:00:03]} Be7 {[%emt 0:00:02]} 7. Nc3 {[%emt 0:00:09]} h6 {[%emt 0:00:14]} 8. Be3 {[%emt 0:00:13]} d6 {[%emt 0:00:23]} 9. h3 {[%emt 0:00:07]} Na5 {[%emt 0:00:12]} 10. Bb3 {[%emt 0:00:20]} Nxb3 {[%emt 0:00:02]} 11. axb3 {[%emt 0:00:01]} Be6 {[%emt 0:00:48]} 12. d4 {[%emt 0:01:36]} exd4 {[%emt 0:00:09]} 13. Nxd4 {[%emt 0:00:01]} Bd7 {[%emt 0:01:38]} 14. f4 {[%emt 0:00:29]} c5 {[%emt 0:00:34]} 15. Nde2 {[%emt 0:00:27]} Bc6 {[%emt 0:00:10]} 16. Ng3 {[%emt 0:01:21]} d5 {[%emt 0:00:58]} 17. exd5 {[%emt 0:00:42]} Nxd5 {[%emt 0:00:21]} 18. Nxd5 {[%emt 0:00:08]} Bxd5 {[%emt 0:00:32]} 19. Nf5 {[%emt 0:01:29]} Be4 {[%emt 0:00:01]} 20. Qg4 {[%emt 0:00:58]} Bxf5 {[%emt 0:00:29]} 21. Qxf5 {[%emt 0:00:02]} Qc7 {[%emt 0:00:08]} 22. Qg4 {[%emt 0:00:23]} Bf6 {[%emt 0:00:13]} 23. c3 {[%emt 0:00:44]} Rfe8 {[%emt 0:00:32]} 24. Rae1 {[%emt 0:00:03]} Kh8 {[%emt 0:00:39]} 25. Qh5 {[%emt 0:00:25]} b6 {[%emt 0:00:36]} 26. f5 {[%emt 0:00:22]} Kg8 {[%emt 0:00:29]} 27. Qg4 {[%emt 0:00:50]} Kh7 {[%emt 0:00:05]} 28. Rf3 {[%emt 0:00:27]} Qb7 {[%emt 0:01:17]} 29. Rff1 Qc7 {[%emt 0:00:03]} 30. Qh5 {[%emt 0:00:41]} Qb7 {[%emt 0:00:13]} 31. Qf3 {[%emt 0:00:08]} Qxf3 {[%emt 0:00:06]} 32. Rxf3 {[%emt 0:00:04]} Re4 {[%emt 0:00:04]} 33. Bd2 {[%emt 0:00:03]} Rxe1+ {[%emt 0:00:12]} 34. Bxe1 {[%emt 0:00:01]} Re8 {[%emt 0:00:02]} 35. Kf2 {[%emt 0:00:02]} Bg5 {[%emt 0:00:22]} 36. g3 {[%emt 0:00:11]} Bc1 {[%emt 0:00:15]} 37. c4 {[%emt 0:00:06]} Bxb2 {[%emt 0:00:06]} 38. g4 {[%emt 0:00:08]} Bd4+ {[%emt 0:00:02]} 39. Kf1 {[%emt 0:00:01]} Re7 {[%emt 0:00:30]} 40. Rd3 {[%emt 0:00:06]} g6 {[%emt 0:00:15]} 41. Bg3 {[%emt 0:00:09]} Re8 {[%emt 0:00:09]} 42. fxg6+ {[%emt 0:00:00]} fxg6 {[%emt 0:00:01]} 43. Be1 {[%emt 0:00:03]} Kg8 {[%emt 0:00:03]} 44. Bd2 {[%emt 0:00:04]} Kg7 {[%emt 0:00:03]} 45. Rf3 {[%emt 0:00:07]} h5 {[%emt 0:00:11]} 46. gxh5 {[%emt 0:00:02]} gxh5 {[%emt 0:00:01]} 47. Rf5 {[%emt 0:00:03]} Re5 {[%emt 0:00:07]} 48. Rxe5 {[%emt 0:00:03]} Bxe5 {[%emt 0:00:01]} 49. Kg2 {[%emt 0:00:01]} Kg6 {[%emt 0:00:01]} 50. Kf3 {[%emt 0:00:02]} Kf5 {[%emt 0:00:02]} 51. Bh6 {[%emt 0:00:06]} a6 {[%emt 0:00:03]} 52. Bf8 {[%emt 0:00:02]} Bd4 {[%emt 0:00:04]} 53. Be7 {[%emt 0:00:10]} b5 {[%emt 0:00:02]} 54. cxb5 {[%emt 0:00:01]} axb5 {[%emt 0:00:01]} 55. Bf8 {[%emt 0:00:06]} c4 {[%emt 0:00:05]} 56. bxc4 {[%emt 0:00:01]} bxc4 {[%emt 0:00:01]} 57. Bh6 {[%emt 0:00:02]} Bf6 {[%emt 0:00:07]} 58. Bc1 {[%emt 0:00:05]} c3 {[%emt 0:00:06]} 59. Ba3 {[%emt 0:00:08]} Kg5 {[%emt 0:00:12]} 60. Kg2 {[%emt 0:00:06]} Kf4 {[%emt 0:00:05]} 61. Bc1+ {[%emt 0:00:05]} Ke4 {[%emt 0:00:02]} 62. Kf2 {[%emt 0:00:03]} Kd3 {[%emt 0:00:02]} 63. Bf4 {[%emt 0:00:04]} Kc2 {[%emt 0:00:13]} 64. Ke2 {[%emt 0:00:06]} Kb1 {[%emt 0:00:07]} 65. Kd3 {[%emt 0:00:11]} c2 {[%emt 0:00:03]} 66. Bd2 {[%emt 0:00:11]} Bb2 {[%emt 0:00:06]} 67. Be3 {[%emt 0:00:18]} Bc1 {[%emt 0:00:04]} 68. Bc5 {[%emt 0:00:02]} Bg5 {[%emt 0:00:04]} 69. Ba3 {[%emt 0:00:01]} h4 {[%emt 0:00:15]} 70. Ke2 {[%emt 0:00:04]} Ka2 {[%emt 0:00:12]} 71. Kd3 {[%emt 0:00:06]} Kb3 {[%emt 0:00:03]} 72. Bc1 {[%emt 0:00:14]} Bxc1 {[%emt 0:00:02]} 73. Ke4 {[%emt 0:00:00]} Bg5 {[%emt 0:00:03]} 74. Kf3 {[%emt 0:00:01]} c1=Q {[%emt 0:00:02]} 75. Kg4 {[%emt 0:00:01]} Bd8 {[%emt 0:00:05]} 76. Kf5 {[%emt 0:00:01]} Qg5+ {[%emt 0:00:02]} 77. Ke4 {[%emt 0:00:01]} Qc5 {[%emt 0:00:06]} 78. Kf3 {[%emt 0:00:01]} Qd4 {[%emt 0:00:03]} 79. Kg2 {[%emt 0:00:01]} Qe3 {[%emt 0:00:03]} 80. Kf1 {[%emt 0:00:03]} Qd2 {[%emt 0:00:04]} 81. Kg1 {[%emt 0:00:01]} Bb6+ {[%emt 0:00:02]} 82. Kh1 {[%emt 0:00:02]} Bc7 {[%emt 0:00:06]} 83. Kg1 {[%emt 0:00:02]} Bg3 {[%emt 0:00:02]} 84. Kh1 {[%emt 0:00:01]} Qh2# {[%emt 0:00:01]} 0-1

[Event "2nd FIDE WCC Rapid G12"]
[Site "Minsk"]
[Date "2018.06.23"]
[Round "9"]
[White "Krupnova, Anna"]
[Black "Fedoricheva, Ekaterina"]
[Result "1-0"]
[ECO "D02"]
[WhiteElo "1761"]
[BlackElo "1544"]
[Annotator "NA RC"]
[PlyCount "115"]
[EventDate "2018.06.22"]
[EventType "rapid"]
[EventCountry "BLR"]
[SourceTitle "playchess.com"]
[Source "ChessBase"]
[SourceQuality "1"]
[TimeControl "600+5"]

1. d4 {[%emt 0:00:00]} d5 {[%emt 0:00:01]} 2. Nf3 {[%emt 0:00:00]} Nf6 {[%emt 0:00:01]} 3. g3 {[%emt 0:00:00]} e6 {[%emt 0:00:01]} 4. Bg2 {[%emt 0:00:02]} Be7 {[%emt 0:00:01]} 5. O-O {[%emt 0:00:03]} O-O {[%emt 0:00:01]} 6. c4 {[%emt 0:00:00]} dxc4 {[%emt 0:00:05]} 7. Qa4 {[%emt 0:00:14]} Nbd7 {[%emt 0:00:38]} 8. Qxc4 {[%emt 0:00:04]} Nb6 {[%emt 0:00:01]} 9. Qc2 {[%emt 0:00:11]} Bd7 {[%emt 0:00:15]} 10. Nc3 {[%emt 0:00:20]} Bc6 {[%emt 0:00:06]} 11. Rd1 {[%emt 0:01:28]} h6 {[%emt 0:00:58]} 12. e4 {[%emt 0:00:38]} Bb4 {[%emt 0:00:06]} 13. Ne5 {[%emt 0:00:28]} Qe8 {[%emt 0:02:03]} 14. Qe2 {[%emt 0:03:03]} Bxc3 {[%emt 0:00:23]} 15. bxc3 {[%emt 0:00:03]} Ba4 {[%emt 0:00:34]} 16. Re1 {[%emt 0:00:24]} Nfd7 {[%emt 0:00:15]} 17. Nxd7 {[%emt 0:00:41]} Qxd7 {[%emt 0:00:02]} 18. Bf4 {[%emt 0:00:17]} Bb5 {[%emt 0:00:32]} 19. Qc2 {[%emt 0:00:31]} Rad8 {[%emt 0:01:00]} 20. h4 {[%emt 0:00:48]} Qc6 {[%emt 0:00:16]} 21. Qc1 {[%emt 0:00:38]} Na4 {[%emt 0:00:59]} 22. Bd2 {[%emt 0:00:28]} Qa6 {[%emt 0:00:46]} 23. e5 {[%emt 0:00:33]} Bc6 {[%emt 0:00:14]} 24. Bf1 {[%emt 0:00:14]} Qa5 {[%emt 0:00:36]} 25. Bd3 {[%emt 0:00:22]} Qd5 {[%emt 0:00:49]} 26. Be4 {[%emt 0:00:02]} Qc4 {[%emt 0:00:01]} 27. h5 {[%emt 0:00:20]} Bxe4 {[%emt 0:00:26]} 28. Rxe4 {[%emt 0:00:03]} Nc5 {[%emt 0:00:11]} 29. Rg4 {[%emt 0:00:16]} Nd3 {[%emt 0:01:01]} 30. Qd1 {[%emt 0:00:08]} f5 {[%emt 0:00:01]} 31. exf6 {[%emt 0:00:04]} Rxf6 {[%emt 0:00:01]} 32. Qe2 {[%emt 0:00:07]} Rxf2 {[%emt 0:00:08]} 33. Qe3 {[%emt 0:00:06]} Rf6 {[%emt 0:00:07]} 34. Re4 {[%emt 0:00:06]} Re8 {[%emt 0:00:09]} 35. Qe2 {[%emt 0:00:04]} Qa6 {[%emt 0:00:02]} 36. Qe3 {[%emt 0:00:05]} Nb2 {[%emt 0:00:01]} 37. Re1 {[%emt 0:00:03]} Nc4 {[%emt 0:00:04]} 38. Qd3 {[%emt 0:00:03]} Nxd2 {[%emt 0:00:02]} 39. Qxd2 {[%emt 0:00:01]} Rf3 {[%emt 0:00:05]} 40. Qg2 {[%emt 0:00:06]} Qd3 {[%emt 0:00:02]} 41. Rg4 {[%emt 0:00:04]} Re3 {[%emt 0:00:07]} 42. Rf1 {[%emt 0:00:03]} Qxc3 {[%emt 0:00:04]} 43. Qf2 {[%emt 0:00:01]} Kh8 {[%emt 0:00:12]} 44. Rxg7 {[%emt 0:00:14]} Qxd4 {[%emt 0:00:09]} 45. Rg6 {[%emt 0:00:09]} Re4 {[%emt 0:00:07]} 46. Rxh6+ {[%emt 0:00:03]} Kg7 {[%emt 0:00:02]} 47. Rg6+ {[%emt 0:00:05]} Kh7 {[%emt 0:00:01]} 48. Qxd4 {[%emt 0:00:05]} Rxd4 {[%emt 0:00:01]} 49. Rf7+ {[%emt 0:00:02]} Kh8 {[%emt 0:00:02]} 50. Rgg7 {[%emt 0:00:10]} e5 {[%emt 0:00:17]} 51. Rh7+ {[%emt 0:00:02]} Kg8 {[%emt 0:00:01]} 52. Rhg7+ {[%emt 0:00:01]} Kh8 {[%emt 0:00:01]} 53. Rh7+ {[%emt 0:00:09]} Kg8 {[%emt 0:00:00]} 54. Rfg7+ {[%emt 0:00:08]} Kf8 {[%emt 0:00:01]} 55. h6 {[%emt 0:00:07]} Rd1+ {[%emt 0:00:20]} 56. Kg2 {[%emt 0:00:02]} Rd2+ {[%emt 0:00:01]} 57. Kh3 {[%emt 0:00:04]} Re6 {[%emt 0:00:04]} 58. Rh8# {[%emt 0:00:02]} 1-0

[Event "2nd FIDE WCC Rapid G12"]
[Site "Minsk"]
[Date "2018.06.23"]
[Round "9"]
[White "Tarasenka, Aliaksandra"]
[Black "Gaal, Zsoka"]
[Result "1-0"]
[ECO "D85"]
[WhiteElo "1747"]
[BlackElo "2060"]
[Annotator "NA RC"]
[PlyCount "153"]
[EventDate "2018.06.22"]
[EventType "rapid"]
[EventCountry "BLR"]
[SourceTitle "playchess.com"]
[Source "ChessBase"]
[SourceQuality "1"]
[TimeControl "600+5"]

1. d4 {[%emt 0:00:00]} Nf6 {[%emt 0:00:02]} 2. c4 {[%emt 0:00:00]} g6 {[%emt 0:00:01]} 3. Nc3 {[%emt 0:00:02]} d5 {[%emt 0:00:02]} 4. cxd5 {[%emt 0:01:46]} Nxd5 {[%emt 0:00:02]} 5. e3 {[%emt 0:00:31]} Bg7 {[%emt 0:00:11]} 6. Nf3 {[%emt 0:00:07]} O-O {[%emt 0:00:12]} 7. Bc4 {[%emt 0:00:12]} Nxc3 {[%emt 0:00:04]} 8. bxc3 {[%emt 0:00:02]} c5 {[%emt 0:00:05]} 9. O-O {[%emt 0:00:17]} Qc7 {[%emt 0:00:15]} 10. Bd3 {[%emt 0:01:16]} Nc6 {[%emt 0:00:23]} 11. Ba3 {[%emt 0:00:17]} cxd4 {[%emt 0:00:54]} 12. cxd4 {[%emt 0:00:11]} Qa5 {[%emt 0:01:01]} 13. Bb2 {[%emt 0:01:10]} Bg4 {[%emt 0:00:39]} 14. h3 {[%emt 0:00:39]} Bxf3 {[%emt 0:01:18]} 15. Qxf3 {[%emt 0:00:07]} Rad8 {[%emt 0:01:02]} 16. Be4 {[%emt 0:00:54]} Rc8 {[%emt 0:01:23]} 17. Rfc1 {[%emt 0:00:39]} Qb4 {[%emt 0:00:51]} 18. Rab1 {[%emt 0:01:40]} Qa4 {[%emt 0:00:10]} 19. a3 {[%emt 0:00:50]} e5 {[%emt 0:02:22]} 20. Bxc6 {[%emt 0:00:29]} bxc6 {[%emt 0:00:03]} 21. dxe5 {[%emt 0:00:18]} c5 {[%emt 0:00:30]} 22. Qd5 {[%emt 0:00:15]} Qc6 {[%emt 0:00:15]} 23. Rd1 {[%emt 0:00:05]} Qxd5 24. Rxd5 {[%emt 0:00:01]} c4 {[%emt 0:00:05]} 25. Rc1 {[%emt 0:00:08]} Rb8 {[%emt 0:00:09]} 26. Bd4 {[%emt 0:00:03]} Rfc8 {[%emt 0:00:04]} 27. Bxa7 {[%emt 0:00:08]} Ra8 {[%emt 0:00:08]} 28. Bc5 {[%emt 0:00:03]} Bf8 {[%emt 0:00:04]} 29. Rxc4 {[%emt 0:00:05]} Bxc5 {[%emt 0:00:05]} 30. Rdxc5 Rxc5 {[%emt 0:00:06]} 31. Rxc5 {[%emt 0:00:04]} Rxa3 {[%emt 0:00:00]} 32. Kh2 {[%emt 0:00:02]} Kf8 {[%emt 0:00:02]} 33. Kg3 {[%emt 0:00:15]} Ke7 {[%emt 0:00:00]} 34. Kf4 {[%emt 0:00:03]} Ra2 {[%emt 0:00:07]} 35. Kf3 {[%emt 0:00:02]} Ke6 {[%emt 0:00:02]} 36. g4 {[%emt 0:00:06]} Ra4 {[%emt 0:00:10]} 37. Kg3 {[%emt 0:00:08]} Ra3 {[%emt 0:00:03]} 38. Rc7 {[%emt 0:00:05]} Rb3 {[%emt 0:00:09]} 39. Kf3 {[%emt 0:00:03]} h5 {[%emt 0:00:06]} 40. gxh5 gxh5 41. Kg3 {[%emt 0:00:10]} Kxe5 {[%emt 0:00:07]} 42. Rxf7 {[%emt 0:00:02]} Rb2 {[%emt 0:00:03]} 43. Rh7 {[%emt 0:00:06]} h4+ {[%emt 0:00:07]} 44. Rxh4 {[%emt 0:00:02]} Kf5 {[%emt 0:00:01]} 45. Rc4 {[%emt 0:00:10]} Kg5 {[%emt 0:00:02]} 46. h4+ {[%emt 0:00:02]} Kg6 {[%emt 0:00:01]} 47. Rc5 {[%emt 0:00:06]} Rb1 {[%emt 0:00:01]} 48. e4 {[%emt 0:00:08]} Rg1+ {[%emt 0:00:07]} 49. Kf4 {[%emt 0:00:04]} Rh1 {[%emt 0:00:04]} 50. h5+ {[%emt 0:00:03]} Kf7 {[%emt 0:00:02]} 51. Ke3 {[%emt 0:00:07]} Rh4 {[%emt 0:00:05]} 52. f4 {[%emt 0:00:06]} Rh3+ {[%emt 0:00:01]} 53. Kd4 Ke7 54. Rg5 {[%emt 0:00:09]} Ra3 {[%emt 0:00:05]} 55. f5 {[%emt 0:00:06]} Ra4+ {[%emt 0:00:03]} 56. Ke5 {[%emt 0:00:01]} Ra5+ {[%emt 0:00:04]} 57. Kf4 {[%emt 0:00:01]} Ra1 {[%emt 0:00:13]} 58. h6 {[%emt 0:00:07]} Rh1 {[%emt 0:00:03]} 59. Rg6 {[%emt 0:00:03]} Kf7 {[%emt 0:00:05]} 60. Ke5 {[%emt 0:00:07]} Ra1 {[%emt 0:00:08]} 61. h7 {[%emt 0:00:10]} Rh1 {[%emt 0:00:04]} 62. Ra6 {[%emt 0:00:02]} Kg7 {[%emt 0:00:06]} 63. Ra7+ {[%emt 0:00:03]} Kh8 {[%emt 0:00:01]} 64. Ra8+ {[%emt 0:00:13]} Kxh7 {[%emt 0:00:04]} 65. Ke6 {[%emt 0:00:05]} Rh6+ {[%emt 0:00:09]} 66. f6 {[%emt 0:00:01]} Rg6 {[%emt 0:00:05]} 67. e5 {[%emt 0:00:04]} Rh6 {[%emt 0:00:07]} 68. Kf7 {[%emt 0:00:04]} Rh1 {[%emt 0:00:19]} 69. e6 {[%emt 0:00:02]} Rb1 {[%emt 0:00:02]} 70. e7 {[%emt 0:00:05]} Rb7 {[%emt 0:00:01]} 71. Kf8 {[%emt 0:00:04]} Rb6 {[%emt 0:00:04]} 72. e8=Q {[%emt 0:00:07]} Rxf6+ {[%emt 0:00:04]} 73. Ke7 {[%emt 0:00:04]} Rf1 {[%emt 0:00:11]} 74. Qf7+ {[%emt 0:00:13]} Kh6 {[%emt 0:00:13]} 75. Qxf1 {[%emt 0:00:02]} Kh7 {[%emt 0:00:03]} 76. Kf7 {[%emt 0:00:05]} Kh6 {[%emt 0:00:03]} 77. Qf4+ {[%emt 0:00:01]} 1-0

[Event "2nd FIDE WCC Rapid G12"]
[Site "Minsk"]
[Date "2018.06.23"]
[Round "9"]
[White "Omonova, Umida"]
[Black "Shubenkova, Veronika"]
[Result "1/2-1/2"]
[ECO "B42"]
[WhiteElo "1733"]
[BlackElo "1700"]
[Annotator "NA RC"]
[PlyCount "53"]
[EventDate "2018.06.22"]
[EventType "rapid"]
[EventCountry "BLR"]
[SourceTitle "playchess.com"]
[Source "ChessBase"]
[SourceQuality "1"]
[TimeControl "600+5"]

1. e4 {[%emt 0:00:00]} c5 {[%emt 0:00:29]} 2. Nf3 {[%emt 0:00:00]} e6 {[%emt 0:00:18]} 3. d4 {[%emt 0:00:06]} cxd4 {[%emt 0:00:10]} 4. Nxd4 {[%emt 0:00:05]} a6 {[%emt 0:00:13]} 5. Bd3 {[%emt 0:00:19]} Qc7 {[%emt 0:00:37]} 6. O-O {[%emt 0:00:09]} Nf6 {[%emt 0:00:28]} 7. Nc3 {[%emt 0:00:33]} Be7 {[%emt 0:00:16]} 8. Be3 {[%emt 0:00:24]} O-O {[%emt 0:00:19]} 9. Qe2 {[%emt 0:00:10]} d6 {[%emt 0:00:26]} 10. Rad1 {[%emt 0:00:06]} Nbd7 {[%emt 0:00:29]} 11. Kh1 {[%emt 0:00:09]} Ne5 {[%emt 0:00:54]} 12. f4 {[%emt 0:00:14]} Nc6 {[%emt 0:00:32]} 13. Nxc6 {[%emt 0:00:12]} bxc6 {[%emt 0:00:18]} 14. Bg1 {[%emt 0:00:14]} Bb7 {[%emt 0:00:31]} 15. e5 {[%emt 0:00:16]} dxe5 {[%emt 0:00:48]} 16. fxe5 {[%emt 0:00:03]} Nd5 {[%emt 0:00:04]} 17. Nxd5 {[%emt 0:00:24]} cxd5 {[%emt 0:00:18]} 18. Rf3 {[%emt 0:00:07]} Qd7 {[%emt 0:01:08]} 19. Rdf1 {[%emt 0:01:31]} f5 {[%emt 0:00:22]} 20. exf6 {[%emt 0:00:19]} Bxf6 {[%emt 0:00:18]} 21. b3 {[%emt 0:00:14]} e5 {[%emt 0:00:12]} 22. Rh3 {[%emt 0:00:34]} h6 {[%emt 0:00:11]} 23. Bf5 {[%emt 0:00:08]} Qe7 {[%emt 0:00:15]} 24. Qg4 {[%emt 0:00:13]} Bg5 {[%emt 0:00:22]} 25. Rhf3 {[%emt 0:00:08]} e4 {[%emt 0:00:11]} 26. Be6+ {[%emt 0:00:02]} Kh8 {[%emt 0:00:01]} 27. Rf7 {[%emt 0:00:02]} 1/2-1/2

[Event "2nd FIDE WCC Rapid G12"]
[Site "Minsk"]
[Date "2018.06.23"]
[Round "9"]
[White "Dubovyk, Anastasiia"]
[Black "Cherepanova, Evita"]
[Result "1-0"]
[ECO "C02"]
[WhiteElo "1721"]
[BlackElo "1604"]
[Annotator "NA RC"]
[PlyCount "63"]
[EventDate "2018.06.22"]
[EventType "rapid"]
[EventCountry "BLR"]
[SourceTitle "playchess.com"]
[Source "ChessBase"]
[SourceQuality "1"]
[TimeControl "600+5"]

1. e4 {[%emt 0:00:00]} e6 {[%emt 0:00:01]} 2. d4 {[%emt 0:00:00]} d5 {[%emt 0:00:01]} 3. e5 {[%emt 0:00:00]} c5 {[%emt 0:00:00]} 4. c3 {[%emt 0:00:00]} Nc6 {[%emt 0:00:01]} 5. Nf3 {[%emt 0:00:00]} Qb6 {[%emt 0:00:01]} 6. a3 {[%emt 0:00:00]} c4 {[%emt 0:00:01]} 7. Nbd2 {[%emt 0:00:02]} Na5 {[%emt 0:00:04]} 8. Be2 {[%emt 0:00:02]} Bd7 {[%emt 0:00:01]} 9. O-O {[%emt 0:00:06]} Ne7 {[%emt 0:00:03]} 10. Rb1 {[%emt 0:00:22]} Qc7 {[%emt 0:00:16]} 11. g3 {[%emt 0:00:28]} f6 {[%emt 0:01:55]} 12. Kg2 {[%emt 0:00:39]} Nc8 {[%emt 0:00:19]} 13. Qe1 {[%emt 0:01:04]} Nb6 {[%emt 0:00:26]} 14. Bd1 {[%emt 0:00:12]} Be7 {[%emt 0:01:36]} 15. Bc2 {[%emt 0:00:30]} O-O-O {[%emt 0:00:34]} 16. Qd1 {[%emt 0:01:43]} h5 {[%emt 0:00:39]} 17. Nh4 {[%emt 0:00:46]} Be8 {[%emt 0:00:21]} 18. Ndf3 {[%emt 0:01:32]} Bf7 {[%emt 0:01:08]} 19. Bg6 {[%emt 0:00:44]} Bxg6 {[%emt 0:00:20]} 20. Nxg6 {[%emt 0:00:02]} Rhg8 {[%emt 0:00:11]} 21. Bf4 {[%emt 0:00:27]} Qd7 {[%emt 0:00:11]} 22. Nfh4 {[%emt 0:00:34]} Qe8 {[%emt 0:00:54]} 23. Qxh5 {[%emt 0:00:21]} fxe5 {[%emt 0:00:20]} 24. Nxe7+ {[%emt 0:00:59]} Qxe7 {[%emt 0:00:01]} 25. Bg5 {[%emt 0:00:17]} Qd7 {[%emt 0:00:29]} 26. Bxd8 {[%emt 0:00:12]} Qxd8 {[%emt 0:00:13]} 27. Qxe5 {[%emt 0:00:07]} Qe8 {[%emt 0:00:19]} 28. Rbe1 {[%emt 0:00:08]} Nd7 29. Qxe6 {[%emt 0:00:09]} Qd8 {[%emt 0:01:46]} 30. Qxd5 {[%emt 0:00:09]} g5 {[%emt 0:00:09]} 31. Nf5 {[%emt 0:00:05]} Kb8 {[%emt 0:00:12]} 32. Re7 {[%emt 0:00:17]} 1-0

[Event "2nd FIDE WCC Rapid G12"]
[Site "Minsk"]
[Date "2018.06.23"]
[Round "9"]
[White "Nguyen, Hong Nhung"]
[Black "Nguyen, Linh Dan"]
[Result "1-0"]
[ECO "B24"]
[WhiteElo "1518"]
[BlackElo "1325"]
[Annotator "NA RC"]
[PlyCount "83"]
[EventDate "2018.06.22"]
[EventType "rapid"]
[EventCountry "BLR"]
[SourceTitle "playchess.com"]
[Source "ChessBase"]
[SourceQuality "1"]
[TimeControl "600+5"]

1. e4 {[%emt 0:00:00]} c5 {[%emt 0:00:01]} 2. Nc3 {[%emt 0:00:00]} Nc6 {[%emt 0:00:03]} 3. g3 {[%emt 0:00:00]} g6 {[%emt 0:00:03]} 4. Bg2 {[%emt 0:00:02]} Bg7 {[%emt 0:00:02]} 5. d3 {[%emt 0:00:02]} e5 {[%emt 0:00:05]} 6. Be3 {[%emt 0:00:02]} d6 {[%emt 0:00:02]} 7. Qd2 {[%emt 0:00:03]} Nge7 {[%emt 0:00:10]} 8. Nge2 {[%emt 0:00:02]} Be6 {[%emt 0:00:06]} 9. O-O {[%emt 0:00:04]} O-O {[%emt 0:00:05]} 10. f4 {[%emt 0:00:05]} f5 {[%emt 0:00:04]} 11. fxe5 {[%emt 0:00:40]} Nxe5 {[%emt 0:00:23]} 12. Bh6 {[%emt 0:00:17]} Ng4 {[%emt 0:01:03]} 13. Bxg7 {[%emt 0:00:15]} Kxg7 {[%emt 0:00:04]} 14. Nf4 {[%emt 0:00:06]} Bf7 {[%emt 0:00:22]} 15. h3 {[%emt 0:00:26]} Ne5 {[%emt 0:00:52]} 16. Rae1 {[%emt 0:00:30]} Rb8 {[%emt 0:00:39]} 17. exf5 {[%emt 0:00:29]} Nxf5 {[%emt 0:00:12]} 18. Kh2 {[%emt 0:00:28]} Kh8 {[%emt 0:01:20]} 19. Ne4 {[%emt 0:00:10]} b6 {[%emt 0:00:22]} 20. Qc3 {[%emt 0:00:35]} Nd4 {[%emt 0:00:26]} 21. Ne2 {[%emt 0:00:57]} Nxe2 {[%emt 0:00:58]} 22. Rxe2 {[%emt 0:00:02]} Bd5 {[%emt 0:00:33]} 23. Nxd6 {[%emt 0:00:54]} Qxd6 {[%emt 0:00:46]} 24. Rxe5 {[%emt 0:00:02]} Bxg2 {[%emt 0:00:45]} 25. Rd5+ {[%emt 0:00:17]} Kg8 {[%emt 0:00:14]} 26. Rxd6 {[%emt 0:00:02]} Bxf1 {[%emt 0:00:07]} 27. Rd7 {[%emt 0:00:04]} Rf7 {[%emt 0:00:27]} 28. Qc4 {[%emt 0:00:05]} Rbf8 {[%emt 0:00:05]} 29. Rxa7 {[%emt 0:00:13]} b5 {[%emt 0:00:29]} 30. Qd5 {[%emt 0:00:12]} c4 {[%emt 0:00:11]} 31. d4 {[%emt 0:00:20]} c3 {[%emt 0:00:10]} 32. b3 {[%emt 0:00:02]} Kg7 {[%emt 0:00:07]} 33. Qe5+ {[%emt 0:00:02]} Kg8 {[%emt 0:00:04]} 34. Qe6 {[%emt 0:00:13]} Kg7 {[%emt 0:00:06]} 35. Rxf7+ {[%emt 0:00:26]} Rxf7 {[%emt 0:00:02]} 36. Qe5+ {[%emt 0:00:03]} Kh6 {[%emt 0:00:08]} 37. Qe3+ {[%emt 0:00:03]} Kg7 {[%emt 0:00:02]} 38. d5 {[%emt 0:00:02]} b4 {[%emt 0:00:25]} 39. d6 {[%emt 0:00:06]} Rd7 {[%emt 0:00:27]} 40. Qf4 {[%emt 0:00:07]} Bb5 {[%emt 0:00:06]} 41. Qxb4 {[%emt 0:00:03]} Bc6 {[%emt 0:00:05]} 42. Qxc3+ {[%emt 0:00:03]} 1-0